bitfinex-derivatives/quotes_SOLF0:USTF0_20250720
["timestamp","ask_amount","ask_price","bid_price","bid_amount"]
[1753025528536,2.98,181.17,181.16,2.8]
[1753025528933,2.98,181.19,181.18,2.8]
[1753025529131,2.98,181.19,181.14,2.8]
[1753025529639,2.98,181.22,181.14,2.8]
[1753025529835,2.98,181.2,181.14,2.8]
[1753025530035,2.98,181.2,181.17,5.5172]
[1753025530938,2.98,181.2,181.16,8.3175]
[1753025531437,2.98,181.19,181.18,8.3167]
[1753025532139,2.98,181.25,181.16,2.30335099]
[1753025532342,2.98,181.23,181.17,2.8]
[1753025532636,2.98,181.23,181.21,5.5161]
[1753025532931,377.06883409,181.29,181.1,6.18620374]
[1753025532932,2.98,181.25,181.18,2.30335099]
[1753025533138,2.98,181.24,181.23,2.8]
[1753025534936,2.98,181.23,181.22,8.3157]
[1753025535342,2.30335099,181.27,181.22,2.8]
[1753025535538,2.98,181.25,181.22,2.8]
[1753025535843,2.98,181.24,181.23,2.8]
[1753025536142,2.98,181.24,181.23,8.3155]
[1753025537743,2.98,181.26,181.24,5.515]
[1753025537943,2.98,181.26,181.23,2.8]
[1753025538336,2.98,181.26,181.14,2.8]
[1753025538542,2.98,181.23,181.14,2.8]
[1753025538738,2.98,181.23,181.14,5.10335099]
[1753025538947,2.98,181.22,181.21,2.8]
[1753025539846,2.30335099,181.24,181.2,5.5163]
[1753025540041,2.98,181.21,181.14,2.8]
[1753025540240,2.98,181.19,181.14,2.8]
[1753025540441,2.30335099,181.21,181.14,2.8]
[1753025540442,2.98,181.18,181.14,2.8]
[1753025540746,2.98,181.2,181.14,2.8]
[1753025541747,2.30335099,181.26,181.13,130.7457219]
[1753025542051,2.98,181.2,181.14,2.8]
[1753025542249,5.28335099,181.2,181.14,2.8]
[1753025542451,2.98,181.19,181.14,2.8]
[1753025542649,2.30335099,181.18,181.15,2.8]
[1753025543150,2.98,181.16,181.15,2.8]
[1753025543341,2.98,181.18,181.17,5.5173]
[1753025544048,2.98,181.18,181.17,8.3173]
[1753025544554,2.98,181.18,181.17,5.5173]
[1753025545454,5.28335099,181.18,181.15,8.3176]
[1753025545654,2.30335099,181.18,181.15,2.8]
[1753025545846,2.98,181.17,181.14,2.8]
[1753025546252,2.98,181.17,181.15,5.5177]
[1753025546450,2.98,181.17,181.14,2.8]
[1753025546647,2.98,181.17,181.13,130.7457219]
[1753025546851,2.30335099,181.16,181.13,130.7457219]
[1753025547051,2.98,181.15,181.13,130.7457219]
[1753025547351,2.98,181.15,181.14,5.5182]
[1753025548462,2.98,181.15,181.13,136.2642219]
[1753025548856,2.98,181.15,181.13,130.7457219]
[1753025549359,2.30335099,181.16,181.14,5.5182]
[1753025549554,2.30335099,181.16,181.14,2.8]
[1753025549857,3.08,181.15,181.14,8.3182]
[1753025552459,3.08,181.18,181.15,2.8]
[1753025552656,3.08,181.21,181.15,2.8]
[1753025553053,3.08,181.21,181.2,5.5164]
[1753025553954,3.08,181.21,181.2,8.3164]
[1753025554150,3.08,181.21,181.2,5.5164]
[1753025554460,202.06830084,181.33,181.18,2.8]
[1753025554461,5.38335099,181.26,181.21,2.8]
[1753025554660,3.08,181.25,181.21,2.8]
[1753025554962,3.08,181.25,181.22,5.5156]
[1753025555364,3.08,181.25,181.22,8.3156]
[1753025555559,3.08,181.25,181.23,5.5155]
[1753025555755,3.08,181.25,181.22,2.8]
[1753025556060,3.08,181.24,181.22,2.8]
[1753025556260,3.08,181.26,181.2,2.30335099]
[1753025556464,3.08,181.26,181.23,2.8]
[1753025556661,3.08,181.25,181.24,2.8]
[1753025556861,3.08,181.25,181.24,5.5152]
[1753025558165,3.08,181.29,181.19,105.82]
[1753025558466,3.08,181.29,181.26,2.8]
[1753025558667,3.08,181.29,181.24,2.8]
[1753025559372,2.30335099,181.29,181.24,2.8]
[1753025559571,3.08,181.28,181.24,2.8]
[1753025559871,3.08,181.28,181.25,5.5147]
[1753025561569,2.30335099,181.27,181.24,5.5151]
[1753025561774,3.08,181.26,181.24,5.5151]
[1753025563075,3.08,181.26,181.25,5.5149]
[1753025563464,3.08,181.26,181.22,2.8]
[1753025563873,3.08,181.26,181.23,5.5154]
[1753025564075,3.08,181.26,181.23,8.3154]
[1753025564275,3.08,181.26,181.22,5.5157]
[1753025564467,3.08,181.25,181.2,2.8]
[1753025564970,3.08,181.25,181.21,2.8]
[1753025565676,3.08,181.25,181.21,8.316]
[1753025566073,3.08,181.25,181.22,5.5157]
[1753025566371,3.08,181.25,181.22,8.3157]
[1753025568373,3.08,181.25,181.22,5.5157]
[1753025568782,5.38335099,181.24,181.22,5.5157]
[1753025569076,3.08,181.23,181.19,2.8]
[1753025569981,3.08,181.23,181.2,2.8]
[1753025570379,3.08,181.23,181.21,8.3159]
[1753025570682,3.08,181.22,181.21,8.3159]
[1753025571675,5.5143,181.27,181.17,107.86335099]
[1753025571880,3.08,181.26,181.19,2.30335099]
[1753025572076,3.08,181.26,181.2,2.8]
[1753025573377,3.08,181.26,181.24,2.8]
[1753025574681,3.08,181.25,181.24,8.3152]
[1753025575977,3.08,181.25,181.24,2.8]
[1753025576280,3.08,181.25,181.23,5.5155]
[1753025576281,3.08,181.27,181.19,2.30335099]
[1753025576581,3.08,181.27,181.26,2.8]
[1753025577280,3.08,181.27,181.24,2.8]
[1753025577880,3.08,181.27,181.21,2.8]
[1753025578479,2.97,181.26,181.21,2.8]
[1753025578677,2.97,181.26,181.22,8.3058]
[1753025579478,2.30335099,181.25,181.21,8.3061]
[1753025579683,2.97,181.24,181.22,2.79]
[1753025579878,2.97,181.23,181.22,2.79]
[1753025580078,2.30335099,181.25,181.2,5.5163]
[1753025580278,2.97,181.24,181.19,2.79]
[1753025580679,2.97,181.24,181.18,5.517]
[1753025580881,2.30335099,181.23,181.18,5.517]
[1753025581084,2.97,181.22,181.18,8.307]
[1753025581283,2.97,181.22,181.18,5.517]
[1753025581474,2.97,181.22,181.16,2.79]
[1753025581987,2.97,181.24,181.18,2.79]
[1753025583185,2.97,181.24,181.16,2.30335099]
[1753025583186,2.97,181.24,181.17,2.79]
[1753025583984,2.97,181.24,181.2,5.5161]
[1753025584189,2.97,181.23,181.22,2.79]
[1753025586788,2.30335099,181.25,181.21,5.5161]
[1753025587284,2.30335099,181.25,181.22,5.5157]
[1753025588385,2.30335099,181.25,181.15,105.48]
[1753025588386,2.97,181.25,181.24,2.79]
[1753025590691,2.97,181.25,181.24,8.3052]
[1753025591992,2.97,181.25,181.15,2.79]
[1753025592193,2.97,181.25,181.17,5.09335099]
[1753025592486,2.97,181.25,181.18,2.79]
[1753025592988,2.97,181.25,181.2,5.5164]
[1753025593184,2.97,181.24,181.19,2.79]
[1753025593895,2.97,181.24,181.21,5.516]
[1753025594191,2.97,181.24,181.19,2.79]
[1753025594391,2.97,181.24,181.2,2.79]
[1753025594684,2.97,181.24,181.2,8.3062]
[1753025594890,2.97,181.24,181.2,2.79]
[1753025595893,2.97,181.24,181.21,5.516]
[1753025596388,2.97,181.24,181.2,5.5163]
[1753025596590,2.97,181.24,181.19,2.79]
[1753025596992,2.97,181.24,181.2,2.79]
[1753025598088,2.97,181.24,181.19,5.5164]
[1753025598296,2.97,181.24,181.19,8.3064]
[1753025598492,2.97,181.24,181.2,5.5164]
[1753025598896,2.97,181.24,181.2,8.3064]
[1753025601098,2.97,181.24,181.21,5.5161]
[1753025602300,2.97,181.24,181.21,8.3061]
[1753025603103,2.97,181.24,181.21,5.5161]
[1753025603404,2.97,181.24,181.21,5.516]
[1753025603599,2.97,181.24,181.21,8.306]
[1753025604605,2.97,181.24,181.22,5.5157]
[1753025604896,2.97,181.24,181.21,2.79]
[1753025605599,2.97,181.24,181.21,8.3059]
[1753025606402,2.97,181.24,181.21,5.5159]
[1753025607101,2.97,181.24,181.21,8.3059]
[1753025607703,2.97,181.24,181.21,2.79]
[1753025607900,2.97,181.26,181.22,2.79]
[1753025608098,3.06,181.25,181.22,2.79]
[1753025608507,3.06,181.25,181.24,5.515]
[1753025608804,3.06,181.25,181.24,8.305]
[1753025611607,3.06,181.25,181.23,8.3054]
[1753025611801,3.06,181.25,181.23,2.79]
[1753025612697,3.06,181.25,181.24,5.5152]
[1753025615006,3.06,181.25,181.24,8.3052]
[1753025616503,3.06,181.28,181.25,5.5149]
[1753025616711,3.06,181.28,181.25,8.3049]
[1753025617606,3.06,181.28,181.25,5.5149]
[1753025618510,3.06,181.28,181.26,2.79]
[1753025618808,3.06,181.31,181.29,2.79]
[1753025619111,3.06,181.3,181.29,8.3036]
[1753025620208,3.06,181.32,181.29,2.79]
[1753025621412,3.06,181.32,181.31,8.303]
[1753025622110,3.06,181.32,181.31,5.513]
[1753025622402,3.06,181.32,181.3,5.5133]
[1753025622608,3.06,181.32,181.3,8.3033]
[1753025622805,3.06,181.32,181.28,5.5137]
[1753025623005,3.06,181.32,181.28,2.79]
[1753025623202,3.06,181.31,181.26,2.79]
[1753025623708,3.06,181.31,181.27,5.514]
[1753025623898,3.06,181.31,181.27,8.304]
[1753025624407,3.06,181.31,181.27,5.514]
[1753025624706,3.06,181.31,181.26,8.3045]
[1753025625108,8.43218508,181.35,181.26,5.5145]
[1753025625109,3.06,181.29,181.26,5.5145]
[1753025625509,3.06,181.29,181.25,5.5148]
[1753025625705,3.06,181.29,181.25,8.3048]
[1753025625901,3.06,181.29,181.25,5.5148]
[1753025626805,3.06,181.27,181.24,5.5151]
[1753025627215,3.06,181.27,181.22,2.79]
[1753025627409,3.06,181.27,181.24,5.5152]
[1753025627609,3.06,181.27,181.25,2.79]
[1753025628609,3.06,181.27,181.2,2.30335099]
[1753025628913,3.06,181.27,181.26,2.79]
[1753025630215,3.06,181.27,181.26,8.3046]
[1753025630715,3.06,181.31,181.26,2.79]
[1753025630915,5.36335099,181.31,181.26,2.79]
[1753025631114,3.06,181.3,181.28,5.5139]
[1753025631312,3.06,181.3,181.27,2.79]
[1753025631813,3.06,181.3,181.26,2.79]
[1753025632214,3.06,181.28,181.26,8.3045]
[1753025632711,3.06,181.28,181.27,5.5143]
[1753025634717,6.12883409,181.35,181.27,2.79]
[1753025635016,3.06,181.32,181.28,2.79]
[1753025635405,3.06,181.32,181.29,5.5134]
[1753025635611,6.12883409,181.38,181.31,2.30335099]
[1753025635811,6.12883409,181.38,181.35,5.5115]
[1753025636018,4.53997024,181.4,181.32,2.79]
[1753025636215,7.59997024,181.4,181.32,2.79]
[1753025636405,7.59997024,181.4,181.28,116.00620374]
[1753025636406,7.59997024,181.4,181.36,2.79]
[1753025636606,3.06,181.39,181.36,2.79]
[1753025637109,3.06,181.39,181.27,112.98]
[1753025637311,2.30335099,181.38,181.28,2.79]
[1753025637509,3.06,181.37,181.28,2.79]
[1753025637715,5.36335099,181.37,181.3,2.79]
[1753025637907,3.06,181.36,181.3,2.79]
[1753025638110,3.03,181.39,181.27,2.79]
[1753025638518,3.03,181.39,181.34,2.79]
[1753025638710,3.03,181.39,181.37,2.79]
[1753025638916,4.53997024,181.4,181.32,116.76]
[1753025639111,4.53997024,181.4,181.34,2.79]
[1753025639513,3.03,181.39,181.35,5.5117]
[1753025639714,7.56997024,181.4,181.36,2.79]
[1753025640221,7.024e-05,181.4,181.38,2.79]
[1753025640421,7.024e-05,181.4,181.39,2.30335099]
[1753025640621,3.03,181.47,181.44,2.79]
[1753025640918,3.03,181.47,181.42,2.79]
[1753025641120,3.03,181.47,181.43,8.2993]
[1753025641316,3.03,181.47,181.41,2.79]
[1753025641620,5.33335099,181.47,181.41,2.79]
[1753025641811,3.03,181.53,181.44,2.79]
[1753025642014,3.03,181.5,181.44,2.79]
[1753025642523,3.03,181.56,181.47,2.79]
[1753025643119,3.03,181.56,181.49,2.30335099]
[1753025643316,5.33335099,181.56,181.5,2.79]
[1753025643522,3.03,181.61,181.52,2.79]
[1753025643719,128.66,181.69,181.52,5.09335099]
[1753025643720,3.03,181.59,181.52,5.09335099]
[1753025643916,2.30335099,181.58,181.52,2.79]
[1753025644122,3.03,181.52,181.45,2.79]
[1753025644618,2.30335099,181.48,181.41,2.30335099]
[1753025644813,3.03,181.47,181.4,2.79]
[1753025645016,3.03,181.47,181.43,2.30335099]
[1753025645211,3.03,181.49,181.45,2.79]
[1753025645424,2.30335099,181.52,181.45,2.79]
[1753025645626,3.03,181.46,181.45,2.79]
[1753025646019,3.03,181.46,181.43,2.79]
[1753025646222,3.03,181.46,181.43,5.5093]
[1753025646422,3.03,181.46,181.44,2.79]
[1753025646728,3.03,181.48,181.46,2.79]
[1753025647926,5.5061,181.54,181.47,2.79]
[1753025648130,3.03,181.5,181.47,2.79]
[1753025648318,3.03,181.5,181.48,2.79]
[1753025649835,3.03,181.49,181.48,2.79]
[1753025650032,3.03,181.49,181.45,2.30335099]
[1753025650229,3.03,181.49,181.47,2.79]
[1753025650428,3.03,181.5,181.48,2.79]
[1753025650632,3.03,181.5,181.42,2.79]
[1753025650833,3.03,181.5,181.44,2.79]
[1753025652231,3.03,181.48,181.45,5.5088]
[1753025652432,3.03,181.61,181.46,5.09335099]
[1753025652634,3.03,181.53,181.47,2.79]
[1753025653239,3.03,181.53,181.49,5.5073]
[1753025653736,3.03,181.53,181.51,5.507]
[1753025653931,3.03,181.53,181.47,2.79]
[1753025654335,3.03,181.53,181.5,5.5072]
[1753025655337,3.03,181.54,181.47,2.79]
[1753025655632,3.03,181.52,181.45,2.79]
[1753025655838,5.33335099,181.52,181.47,5.5082]
[1753025656038,3.03,181.49,181.43,2.79]
[1753025657039,3.03,181.49,181.45,5.5085]
[1753025657336,3.03,181.46,181.39,2.79]
[1753025657537,2.30335099,181.44,181.37,9.31974831]
[1753025657741,3.03,181.43,181.37,5.09335099]
[1753025657939,3.03,181.43,181.38,2.79]
[1753025658139,3.03,181.42,181.4,5.5103]
[1753025658338,3.03,181.45,181.39,2.79]
[1753025658535,3.03,181.44,181.39,2.79]
[1753025658733,3.03,181.42,181.41,5.51]
[1753025658941,3.03,181.42,181.4,2.79]
[1753025659134,8.539,181.45,181.4,5.5101]
[1753025659336,3.03,181.44,181.4,5.5101]
[1753025659533,3.03,181.44,181.38,2.79]
[1753025659941,3.03,181.44,181.4,5.5101]
[1753025660244,3.03,181.44,181.4,2.79]
[1753025660443,3.03,181.44,181.41,5.5099]
[1753025660943,3.03,181.44,181.4,8.3002]
[1753025661136,2.30335099,181.44,181.4,5.5102]
[1753025661335,3.03,181.43,181.4,5.5102]
[1753025661932,2.30335099,181.46,181.37,2.30335099]
[1753025662242,3.03,181.43,181.38,2.79]
[1753025662441,3.03,181.43,181.36,7.02235999]
[1753025662639,5.33335099,181.43,181.36,2.79]
[1753025662841,3.03,181.42,181.37,7.02221593]
[1753025663041,3.03,181.42,181.38,2.79]
[1753025663242,3.03,181.41,181.39,2.79]
[1753025664247,3.03,181.41,181.4,5.5103]
[1753025664434,3.03,181.43,181.41,2.79]
[1753025664639,3.03,181.43,181.42,2.79]
[1753025664938,3.03,181.42,181.4,2.79]
[1753025665638,3.03,181.42,181.4,5.51]
[1753025665941,3.03,181.43,181.41,2.79]
[1753025666543,3.03,181.44,181.42,8.2997]
[1753025666837,181.48703184,181.54,181.33,4.57544564]
[1753025666838,2.30335099,181.51,181.43,5.09335099]
[1753025667042,3.03,181.5,181.44,2.79]
[1753025668534,3.28,181.49,181.45,8.2985]
[1753025668739,3.28,181.48,181.46,2.79]
[1753025668945,3.28,181.5,181.46,5.5084]
[1753025669438,3.28,181.5,181.47,5.5082]
[1753025670039,3.28,181.5,181.41,2.30335099]
[1753025670239,3.28,181.5,181.45,2.79]
[1753025670441,3.28,181.5,181.44,2.79]
[1753025671743,3.28,181.5,181.44,2.30335099]
[1753025671944,3.28,181.53,181.47,2.79]
[1753025672444,3.28,181.53,181.47,8.2981]
[1753025672640,5.5064,181.53,181.47,2.79]
[1753025672840,5.58335099,181.52,181.39,4.57544564]
[1753025673039,3.28,181.51,181.46,5.5083]
[1753025673240,3.28,181.51,181.46,2.79]
[1753025673443,3.28,181.51,181.47,5.508]
[1753025674838,3.28,181.51,181.48,5.5079]
[1753025675039,3.28,181.51,181.45,2.30335099]
[1753025675237,3.28,181.5,181.47,2.79]
[1753025675442,3.28,181.49,181.48,5.5078]
[1753025676344,3.28,181.48,181.47,8.2981]
[1753025676546,129.56,181.59,181.47,4.2465614]
[1753025676844,3.28,181.49,181.48,2.79]
[1753025677044,2.30335099,181.53,181.48,2.79]
[1753025677543,5.5064,181.53,181.49,3.2]
[1753025677744,7.80975099,181.53,181.49,3.2]
[1753025677946,5.5061,181.54,181.49,5.5075]
[1753025678148,7.80945099,181.54,181.5,3.2]
[1753025678448,7.80945099,181.54,181.49,8.7075]
[1753025678652,5.5064,181.53,181.49,8.7075]
[1753025678948,2.30335099,181.54,181.5,3.2]
[1753025678949,3.28,181.52,181.5,3.2]
[1753025679143,2.30335099,181.55,181.5,3.2]
[1753025679346,3.28,181.54,181.47,3.2]
[1753025679747,3.28,181.54,181.46,2.30335099]
[1753025679748,3.28,181.54,181.51,3.2]
[1753025680146,8.7863,181.54,181.49,3.2]
[1753025680444,3.28,181.52,181.51,3.2]
[1753025680643,3.28,181.53,181.52,3.2]
[1753025681550,3.28,181.57,181.52,3.2]
[1753025682048,3.28,181.57,181.54,3.2]
[1753025682450,3.28,181.57,181.54,8.7061]
[1753025682952,3.28,181.57,181.54,3.2]
[1753025683153,3.28,181.57,181.54,8.7061]
[1753025683452,3.28,181.56,181.53,3.2]
[1753025683651,3.28,181.55,181.54,3.2]
[1753025684951,3.28,181.56,181.55,3.2]
[1753025685449,2.30335099,181.58,181.5,2.30335099]
[1753025685650,3.28,181.56,181.55,3.2]
[1753025686653,3.28,181.56,181.53,3.2]
[1753025686955,3.28,181.55,181.54,3.2]
[1753025689148,3.28,181.55,181.51,5.5069]
[1753025689354,3.28,181.55,181.45,4.57544564]
[1753025689653,3.28,181.55,181.49,2.30335099]
[1753025689854,3.28,181.55,181.52,3.2]
[1753025690055,3.28,181.54,181.53,3.2]
[1753025691356,3.28,181.55,181.54,3.2]
[1753025691760,3.28,181.55,181.52,3.2]
[1753025691960,3.28,181.54,181.53,3.2]
[1753025692853,3.28,181.54,181.51,8.7067]
[1753025693052,3.28,181.53,181.52,3.2]
[1753025693257,3.28,181.53,181.5,3.2]
[1753025693454,3.28,181.53,181.46,3.2]
[1753025693660,2.30335099,181.52,181.46,3.2]
[1753025693860,3.28,181.51,181.48,8.7077]
[1753025694055,2.30335099,181.52,181.48,5.5077]
[1753025694361,3.28,181.5,181.49,3.2]
[1753025695864,2.30335099,181.53,181.41,374.84868547]
[1753025696058,3.28,181.49,181.48,3.2]
[1753025696361,3.28,181.49,181.46,8.7084]
[1753025696566,3.28,181.49,181.47,3.2]
[1753025696757,3.28,181.48,181.47,3.2]
[1753025698161,2.97,181.47,181.43,3.06]
[1753025698362,2.97,181.46,181.43,3.06]
[1753025698560,2.97,181.46,181.4,3.06]
[1753025699566,2.97,181.46,181.42,5.5095]
[1753025699756,5.5082,181.47,181.42,5.5095]
[1753025699956,2.97,181.44,181.43,3.06]
[1753025700665,2.30335099,181.49,181.44,3.06]
[1753025700866,2.97,181.48,181.45,3.06]
[1753025701264,2.97,181.46,181.45,3.06]
[1753025701963,2.30335099,181.5,181.45,3.06]
[1753025702168,2.97,181.48,181.45,3.06]
[1753025702560,2.97,181.47,181.46,3.06]
[1753025702765,2.97,181.47,181.45,3.06]
[1753025703566,2.97,181.45,181.4,3.06]
[1753025703870,2.97,181.43,181.42,3.06]
[1753025704069,2.97,181.43,181.42,8.5697]
[1753025704369,2.97,181.43,181.42,3.06]
[1753025704670,2.97,181.45,181.42,3.06]
[1753025705065,2.97,181.44,181.43,3.06]
[1753025706465,2.97,181.43,181.37,3.06]
[1753025706862,2.97,181.43,181.39,5.5104]
[1753025707067,2.97,181.43,181.4,3.06]
[1753025707865,2.97,181.43,181.4,8.5702]
[1753025708469,2.97,181.42,181.41,3.06]
[1753025709562,2.97,181.41,181.4,3.06]
[1753025710563,2.97,181.46,181.4,3.06]
[1753025710865,5.5082,181.47,181.4,3.06]
[1753025711071,2.97,181.48,181.4,3.06]
[1753025711072,2.97,181.46,181.4,3.06]
[1753025711770,2.97,181.46,181.41,3.06]
[1753025712265,2.97,181.49,181.46,3.06]
[1753025713472,2.97,181.48,181.46,3.06]
[1753025713671,5.5077,181.49,181.45,3.06]
[1753025713873,2.97,181.48,181.46,3.06]
[1753025714068,2.97,181.47,181.46,3.06]
[1753025716373,2.30335099,181.49,181.46,3.06]
[1753025716574,2.97,181.48,181.47,3.06]
[1753025718672,2.97,181.48,181.47,8.5682]
[1753025719081,2.97,181.48,181.47,3.06]
[1753025719579,184.48045107,181.55,181.47,3.06]
[1753025719775,2.30335099,181.51,181.45,5.5085]
[1753025719976,2.97,181.5,181.46,3.06]
[1753025720175,2.97,181.51,181.46,3.06]
[1753025720677,2.97,181.53,181.48,3.06]
[1753025721380,2.97,181.53,181.52,3.06]
[1753025724373,2.97,181.53,181.45,3.06]
[1753025724374,5.27335099,181.53,181.45,3.06]
[1753025724685,2.97,181.48,181.45,3.06]
[1753025724883,2.97,181.48,181.44,8.5689]
[1753025725183,2.97,181.48,181.45,3.06]
[1753025725377,2.97,181.48,181.45,8.5687]
[1753025725676,2.97,181.47,181.46,3.06]
[1753025727079,2.97,181.47,181.44,8.5689]
[1753025727281,2.97,181.46,181.45,3.06]
[1753025727879,2.97,181.46,181.45,8.5688]
[1753025729382,2.97,181.46,181.45,3.06]
[1753025729984,2.97,181.46,181.45,8.5688]
[1753025730677,2.97,181.46,181.45,3.06]
[1753025731977,2.97,181.46,181.45,8.5688]
[1753025732381,2.97,181.46,181.45,3.06]
[1753025732980,5.27335099,181.46,181.38,5.35335099]
[1753025733272,3.2,181.45,181.39,3.05]
[1753025733481,3.2,181.45,181.42,3.05]
[1753025733671,3.2,181.45,181.43,3.05]
[1753025733873,3.2,181.44,181.43,3.05]
[1753025734876,3.2,181.44,181.43,8.5592]
[1753025736080,3.2,181.44,181.43,3.05]
[1753025736380,3.2,181.44,181.41,3.05]
[1753025736581,5.50335099,181.44,181.4,3.05]
[1753025736782,3.2,181.43,181.4,8.5603]
[1753025736984,3.2,181.43,181.37,3.05]
[1753025737383,3.2,181.41,181.39,3.05]
[1753025737584,3.2,181.41,181.4,3.05]
[1753025737885,3.2,181.41,181.4,8.5603]
[1753025738075,3.2,181.41,181.4,5.5103]
[1753025738276,3.2,181.41,181.38,3.05]
[1753025738679,3.2,181.41,181.36,3.05]
[1753025738983,3.2,181.4,181.36,3.05]
[1753025739186,3.2,181.39,181.36,3.05]
[1753025739489,3.2,181.39,181.37,5.5112]
[1753025739784,3.2,181.39,181.38,3.05]
[1753025740183,3.2,181.39,181.38,8.5609]
[1753025741478,3.2,181.43,181.39,3.05]
[1753025741679,3.2,181.43,181.4,3.05]
[1753025742384,3.2,181.43,181.38,3.05]
[1753025742585,3.2,181.43,181.39,3.05]
[1753025742785,5.50335099,181.43,181.39,3.05]
[1753025743189,3.2,181.42,181.39,3.05]
[1753025743382,3.2,181.4,181.38,5.5107]
[1753025743987,3.2,181.4,181.39,3.05]
[1753025744886,3.2,181.42,181.39,8.5606]
[1753025745087,3.2,181.42,181.4,3.05]
[1753025745287,3.2,181.42,181.41,3.05]
[1753025745787,3.2,181.42,181.4,3.05]
[1753025746086,3.2,181.41,181.4,8.5603]
[1753025746886,3.2,181.41,181.38,3.05]
[1753025747085,3.2,181.41,181.39,3.05]
[1753025747282,3.2,181.4,181.34,3.05]
[1753025747587,2.30335099,181.38,181.34,3.05]
[1753025747784,2.30335099,181.44,181.3,3.05]
[1753025747785,3.2,181.35,181.3,3.05]
[1753025747990,3.2,181.33,181.3,8.5632]
[1753025748283,2.30335099,181.34,181.3,5.5132]
[1753025748585,3.2,181.32,181.29,3.05]
[1753025748783,3.2,181.31,181.27,3.05]
[1753025748985,2.30335099,181.32,181.28,3.05]
[1753025748986,3.2,181.3,181.28,3.05]
[1753025749180,3.2,181.3,181.29,3.05]
[1753025750279,3.2,181.3,181.27,8.564]
[1753025750479,2.30335099,181.35,181.28,3.05]
[1753025750686,3.2,181.33,181.32,3.05]
[1753025752285,3.2,181.39,181.32,3.05]
[1753025752480,3.2,181.39,181.33,2.30335099]
[1753025752787,2.30335099,181.4,181.34,3.05]
[1753025752788,5.5103,181.4,181.34,3.05]
[1753025752988,2.30335099,181.41,181.34,3.05]
[1753025753182,5.5105,181.4,181.36,5.5115]
[1753025753382,3.2,181.38,181.37,3.05]
[1753025754189,3.2,181.38,181.36,5.5115]
[1753025754489,3.2,181.37,181.36,3.05]
[1753025754690,3.2,181.35,181.32,3.05]
[1753025754894,3.2,181.36,181.32,3.05]